bitfinex/quotes_SOLUSD_20260211
["timestamp","ask_amount","ask_price","bid_price","bid_amount"]
[1770852240065,12.63422594,79.151,79.131,3.45535044]
[1770852240267,3.3670231,79.18,79.141,3.45535044]
[1770852240468,3.3670231,79.18,79.161,3.45535044]
[1770852240767,12.62869799,79.185,79.161,3.45535044]
[1770852241360,12.62869799,79.185,79.16,4.9143586]
[1770852241361,102.8,79.184,79.16,4.9143586]
[1770852241589,3.3670231,79.183,79.16,4.9143586]
[1770852242289,3.3670231,79.181,79.16,4.9143586]
[1770852242991,12.62913288,79.182,79.16,4.9143586]
[1770852243368,15.99615598,79.182,79.16,4.9143586]
[1770852243591,3.3670231,79.181,79.16,4.9143586]
[1770852244992,3.3670231,79.181,79.17,4.90784202]
[1770852246292,3.62587842,79.204,79.17,4.90784202]
[1770852246483,3.62587842,79.204,79.19,4.90784202]
[1770852246904,0.2,79.21,79.191,12.62769759]
[1770852247086,0.2,79.21,79.2,4.90784202]
[1770852247279,0.2,79.21,79.19,4.90784202]
[1770852247280,12.62482798,79.209,79.19,4.90784202]
[1770852247481,17.66,79.212,79.172,31.57652279]
[1770852247482,17.66,79.212,79.2,4.90784202]
[1770852247781,3.62587842,79.22,79.2,4.90784202]
[1770852249973,3.62587842,79.221,79.2,4.90784202]
[1770852251292,12.62283573,79.222,79.2,4.90784202]
[1770852251674,3.62587842,79.209,79.165,0.19323208]
[1770852251879,12.62283573,79.222,79.16,4.90784202]
[1770852251880,3.62587842,79.199,79.16,4.90784202]
[1770852252103,3.62587842,79.197,79.16,4.90784202]
[1770852253886,3.62587842,79.195,79.161,12.63248316]
[1770852256083,3.62587842,79.193,79.16,4.90784202]
[1770852257210,3.72462784,79.179,79.16,4.90784202]
[1770852257507,3.72462784,79.177,79.16,4.90784202]
[1770852258613,3.72462784,79.177,79.16,17.54038691]
[1770852260105,71.2313401,79.178,79.16,17.54038691]
[1770852260401,71.2313401,79.178,79.17,4.90784202]
[1770852260594,71.2313401,79.178,79.16,17.54038691]
[1770852261998,3.72462784,79.177,79.137,0.09507012]
[1770852262184,3.72462784,79.177,79.114,101.11987688]
[1770852262185,3.72462784,79.175,79.15,4.90784202]
[1770852262386,133.8313401,79.176,79.16,4.90784202]
[1770852262605,71.2313401,79.176,79.16,4.90784202]
[1770852263311,75.00423088,79.176,79.16,4.90784202]
[1770852264508,75.00423088,79.176,79.161,12.63248316]
[1770852266203,75.00423088,79.176,79.16,4.90784202]
[1770852267612,71.2313401,79.176,79.17,4.90784202]
[1770852267807,3.80574149,79.175,79.16,17.54040627]
[1770852268814,3.80574149,79.175,79.16,4.90784202]
[1770852269313,3.80574149,79.175,79.157,12.63311825]
[1770852270619,3.80574149,79.153,79.127,0.07784376]
[1770852270801,60.97760607,79.153,79.14,4.90784202]
[1770852271311,62.52,79.155,79.14,4.90784202]
[1770852271506,125.16,79.173,79.15,4.90784202]
[1770852272214,62.58,79.172,79.151,0.21881952]
[1770852272520,62.58,79.172,79.152,12.63391954]
[1770852273202,62.58,79.172,79.152,12.85273906]
[1770852273697,62.58,79.172,79.153,0.21785959]
[1770852274920,62.58,79.172,79.154,12.63360032]
[1770852275122,62.58,79.172,79.154,12.85049083]
[1770852275916,62.58,79.172,79.154,12.8494547]
[1770852277421,62.6,79.171,79.154,12.8494547]
[1770852281235,3.81259186,79.17,79.151,12.63407916]
[1770852281520,3.81259186,79.168,79.151,12.63407916]
[1770852281835,3.81259186,79.166,79.151,12.63407916]
[1770852283016,3.81259186,79.166,79.141,12.63567556]
[1770852283218,3.81259186,79.164,79.141,12.63567556]
[1770852283405,3.81259186,79.164,79.13,4.90784202]
[1770852283406,3.81259186,79.163,79.131,12.63727237]
[1770852283611,3.81259186,79.149,79.114,31.59976168]
[1770852283926,3.81259186,79.147,79.114,31.80595693]
[1770852284429,3.81259186,79.147,79.12,4.90784202]
[1770852285117,3.81259186,79.147,79.114,31.80595693]
[1770852285317,3.81259186,79.145,79.102,0.20350037]
[1770852285516,3.81259186,79.145,79.11,4.90784202]
[1770852286507,3.81259186,79.143,79.11,4.90784202]
[1770852286923,3.81259186,79.14,79.111,12.64046719]
[1770852287311,12.63567556,79.141,79.111,12.64046719]
[1770852287312,3.81259186,79.138,79.111,12.64046719]
[1770852287831,3.81259186,79.136,79.111,12.64046719]
[1770852289234,3.81259186,79.135,79.103,12.64174557]
[1770852289407,3.81259186,79.134,79.103,12.64174557]
[1770852290409,31.58704407,79.147,79.103,12.64174557]
[1770852290410,3.81259186,79.147,79.111,0.19612659]
[1770852290623,3.81259186,79.159,79.121,0.20001039]
[1770852290824,12.63120665,79.169,79.103,44.2461095]
[1770852290825,3.81259186,79.145,79.103,44.2461095]
[1770852291128,4.90784202,79.15,79.103,44.2461095]
[1770852291129,3.81259186,79.143,79.111,0.20001039]
[1770852291319,3.81259186,79.141,79.113,0.2728807]
[1770852291527,67.03259186,79.141,79.12,4.90784202]
[1770852291832,3.81259186,79.14,79.119,0.2728807]
[1770852292331,3.81259186,79.14,79.112,12.64030741]
[1770852292527,3.81259186,79.138,79.107,12.64103948]
[1770852292725,63.22,79.139,79.107,12.64103948]
[1770852292726,3.81259186,79.136,79.107,12.64103948]
[1770852293415,3.81259186,79.134,79.101,12.6420652]
[1770852294512,3.81259186,79.134,79.101,44.24722821]
[1770852294714,3.81259186,79.132,79.102,0.26734523]
[1770852295531,3.81259186,79.13,79.104,0.26545371]
[1770852295736,3.81259186,79.128,79.104,0.26545371]
[1770852296613,3.81259186,79.119,79.075,0.26353267]
[1770852296813,63.42,79.118,79.08,4.90784202]
[1770852297025,3.81259186,79.116,79.08,4.90784202]
[1770852297642,3.81259186,79.109,79.081,12.64526245]
[1770852297936,3.81259186,79.109,79.075,0.26353267]
[1770852297937,3.81259186,79.109,79.073,12.6465418]
[1770852299636,3.81259186,79.107,79.073,12.6465418]
[1770852300356,3.81259186,79.107,79.08,4.90784202]
[1770852300516,62.6,79.117,79.091,3.57468413]
[1770852300714,63.58,79.121,79.101,3.57468413]
[1770852300935,63.58,79.121,79.094,3.57468413]
[1770852301324,63.58,79.12,79.094,3.57468413]
[1770852301525,44.2255192,79.14,79.073,12.6465418]
[1770852301526,63.58,79.119,79.084,3.57468413]
[1770852301724,44.2255192,79.14,79.093,3.57468413]
[1770852301725,63.58,79.118,79.093,3.57468413]
[1770852302035,63.58,79.118,79.092,44.25226317]
[1770852302240,63.58,79.118,79.092,12.64350376]
[1770852302421,3.80497563,79.117,79.081,12.64526245]
[1770852302817,63.58,79.118,79.046,50.60330691]
[1770852302818,3.80497563,79.109,79.071,3.57468413]
[1770852303018,3.80497563,79.099,79.066,12.64766144]
[1770852303229,3.80497563,79.097,79.066,12.64766144]
[1770852303438,3.80497563,79.089,79.066,12.64766144]
[1770852303624,3.80497563,79.087,79.066,12.64766144]
[1770852304155,3.80497563,79.087,79.06,0.1]
[1770852304833,3.80497563,79.079,79.06,0.1]
[1770852306433,3.80497563,79.077,79.06,0.1]
[1770852307959,63.62,79.078,79.06,0.1]
[1770852308138,3.80497563,79.077,79.06,0.1]
[1770852309473,3.80497563,79.077,79.047,31.62636577]
[1770852309475,3.80497563,79.069,79.041,12.65154344]
[1770852309630,3.80497563,79.067,79.041,12.65154344]
[1770852309956,3.80497563,79.059,79.03,0.1]
[1770852310627,3.80497563,79.057,79.03,0.1]
[1770852311628,3.80497563,79.055,79.024,12.65428442]
[1770852311937,3.80497563,79.055,79.01,4.92284442]
[1770852311938,3.80497563,79.049,79.011,12.65646555]
[1770852312131,3.80497563,79.047,79.011,12.65646555]
[1770852312346,3.80497563,79.019,78.97,3.57468413]
[1770852312546,3.80497563,79.017,78.99,12.75967881]
[1770852312845,63.64,79.016,79.0,4.92284442]
[1770852313246,63.64,79.016,78.999,3.57468413]
[1770852313449,3.80497563,79.015,78.99,0.1]
[1770852313631,3.80497563,79.013,78.99,0.1]
[1770852314247,63.64,79.014,78.991,3.57468413]
[1770852314456,3.80497563,79.013,78.991,3.57468413]
[1770852314764,3.80497563,79.013,78.99,0.1]
[1770852317234,63.64,79.014,78.991,3.57468413]
[1770852317774,63.72,79.021,79.002,16.23259152]
[1770852318053,3.80497563,79.048,79.011,3.57468413]
[1770852318257,67.52497563,79.047,79.011,3.57468413]
[1770852318466,3.80497563,79.046,79.011,3.57468413]
[1770852319653,3.80497563,79.044,79.012,12.65630537]
[1770852322766,3.73735353,79.042,79.012,12.65630537]
[1770852323366,3.73735353,79.042,79.012,16.64755512]
[1770852323576,3.73735353,79.048,79.03,4.92284442]
[1770852323752,3.73735353,79.057,79.03,8.91409417]
[1770852324259,3.73735353,79.057,79.03,4.92284442]
[1770852324468,76.62852094,79.061,79.021,12.65486389]
[1770852324469,3.73735353,79.055,79.021,12.65486389]
[1770852324767,3.73735353,79.055,79.03,4.92284442]
[1770852324968,3.73735353,79.055,79.021,48.28327338]
[1770852325474,3.73735353,79.055,79.022,3.99124975]
[1770852328176,3.73735353,79.055,79.023,12.65454361]
[1770852328757,3.7931719,79.064,79.04,4.92284442]
[1770852329077,3.7931719,79.061,79.04,4.92284442]
[1770852329577,63.94,79.062,79.04,4.92284442]
[1770852329751,4.61729252,79.098,79.041,3.80879395]
[1770852329752,3.7931719,79.067,79.041,3.80879395]
[1770852330284,3.7931719,79.067,79.05,4.92284442]
[1770852330458,63.94,79.082,79.051,3.80879395]
[1770852331363,63.94,79.082,79.05,4.92284442]
[1770852331567,4.92284442,79.08,79.043,3.80879395]
[1770852331778,4.92284442,79.08,79.042,12.65150173]
[1770852331960,4.92284442,79.06,79.026,3.80879395]
[1770852332277,12.64878128,79.059,79.028,12.65360885]
[1770852332479,3.7931719,79.058,79.028,12.65360885]
[1770852333472,12.64910128,79.057,79.028,12.65360885]
[1770852333677,63.98,79.061,79.031,3.80879395]
[1770852333678,3.7931719,79.056,79.031,3.80879395]
[1770852336187,3.7931719,79.056,79.033,3.80879395]
[1770852336985,62.6,79.055,79.033,3.80879395]
[1770852337698,62.6,79.055,79.04,4.92284442]
[1770852337866,62.6,79.055,79.041,3.80879395]
[1770852338266,62.6,79.055,79.042,12.65150173]
[1770852338665,62.6,79.055,79.043,3.80879395]
[1770852339484,62.6,79.055,79.042,12.65150173]
[1770852341081,3.7931719,79.056,79.036,3.80879395]
[1770852341282,3.7931719,79.056,79.04,4.92284442]
[1770852342688,3.7931719,79.056,79.041,12.65166179]
[1770852342889,3.7931719,79.056,79.037,12.6522478]
[1770852343377,62.6,79.057,79.041,3.80879395]
[1770852343860,63.98,79.061,79.05,4.92284442]
[1770852344065,3.7931719,79.069,79.05,8.73163837]
[1770852345784,3.7931719,79.081,79.06,4.92284442]
[1770852345986,62.6,79.08,79.07,4.92284442]
[1770852346192,64.48,79.092,79.071,3.80879395]
[1770852346397,64.48,79.092,79.08,4.92284442]
[1770852346572,3.7931719,79.097,79.08,4.92284442]
[1770852346965,3.7931719,79.097,79.077,3.80879395]
[1770852347170,3.7931719,79.095,79.061,3.80879395]
[1770852347370,3.7931719,79.095,79.07,4.92284442]
[1770852347774,3.7931719,79.095,79.07,8.73163837]
[1770852348396,3.7931719,79.095,79.071,12.64686168]
[1770852348564,64.5,79.099,79.081,3.80879395]
[1770852349571,64.5,79.099,79.082,12.64510255]
[1770852351090,3.94731119,79.098,79.077,12.64576046]
[1770852352394,3.94731119,79.096,79.071,12.64686168]
[1770852353698,3.94731119,79.094,79.071,12.64686168]
[1770852354796,3.94731119,79.094,79.072,4.02843522]
[1770852355000,62.6,79.095,79.081,4.02843522]
[1770852356503,62.6,79.095,79.082,12.64510255]
[1770852356800,3.94731119,79.094,79.073,12.64645486]
[1770852357199,3.94731119,79.094,79.061,31.62080949]
[1770852357200,3.94731119,79.094,79.069,12.64706439]
[1770852357396,3.94731119,79.089,79.055,12.6493343]
[1770852357696,3.94731119,79.087,79.07,4.92284442]
[1770852357899,5.36086188,79.121,79.055,12.6493343]
[1770852357900,3.94731119,79.129,79.081,4.02843522]
[1770852358081,3.94731119,79.127,79.09,4.92284442]
[1770852358276,2.47363458,79.129,79.101,4.02843522]
[1770852358507,50.71184277,79.19,79.12,4.92284442]
[1770852358508,31.58094521,79.162,79.12,4.92284442]
[1770852358696,64.9,79.168,79.13,4.92284442]
[1770852358999,6.59794486,79.188,79.131,4.02843522]
[1770852359204,12.62961138,79.179,79.15,4.92284442]
[1770852359787,4.92284442,79.16,79.124,4.02843522]
[1770852360178,64.86,79.164,79.13,4.92284442]
[1770852360379,3.94731119,79.178,79.15,4.92284442]
[1770852360585,3.94731119,79.178,79.16,4.92284442]
[1770852360801,3.94731119,79.176,79.141,12.63567556]
[1770852361000,64.84,79.179,79.16,4.92284442]
[1770852361200,64.84,79.179,79.151,4.02843522]
[1770852361505,0.2,79.18,79.151,4.02843522]
[1770852361807,3.94731119,79.179,79.151,4.02843522]
[1770852362112,3.94731119,79.178,79.151,4.02843522]
[1770852363104,3.94731119,79.178,79.152,12.63391954]
[1770852363408,0.2,79.18,79.16,4.92284442]
[1770852363584,0.2,79.18,79.153,4.02843522]
[1770852364487,0.2,79.18,79.16,4.92284442]
[1770852365102,0.2,79.18,79.161,44.21369107]
[1770852365413,0.2,79.18,79.162,4.02843522]
[1770852365602,1e-08,79.18,79.17,4.92284442]
[1770852365791,1e-08,79.18,79.171,4.02843522]
[1770852366391,0.2,79.19,79.171,4.02843522]
[1770852367095,0.2,79.19,79.171,12.63088757]
[1770852367406,0.2,79.19,79.17,8.95127964]
[1770852367603,0.2,79.19,79.171,4.02843522]
[1770852369317,0.2,79.19,79.173,4.02843522]
[1770852371208,0.2,79.19,79.174,12.63040897]
[1770852371415,4.14731119,79.19,79.174,12.63040897]
[1770852372522,4.14731119,79.19,79.166,12.63168531]
[1770852372818,3.94731119,79.189,79.14,8.9353598]
[1770852373116,3.94731119,79.179,79.141,4.02843522]
[1770852373701,3.94731119,79.179,79.15,4.90692458]
[1770852374218,3.94731119,79.179,79.15,8.9353598]
[1770852374521,3.94731119,79.179,79.152,4.02843522]
[1770852376125,3.94731119,79.187,79.16,8.9353598]
[1770852376302,3.94731119,79.187,79.161,4.02843522]
[1770852376805,3.94731119,79.187,79.162,12.63232358]
[1770852377423,64.7,79.188,79.158,12.63294948]
[1770852377424,3.94731119,79.185,79.158,12.63294948]
[1770852380227,3.94731119,79.185,79.158,4.02843522]
[1770852380406,3.94731119,79.179,79.14,8.9353598]
[1770852380602,4.05821987,79.159,79.118,4.05240666]
[1770852381112,4.05821987,79.149,79.111,4.05240666]
[1770852381318,4.90692458,79.14,79.111,4.05240666]
[1770852381519,4.05821987,79.139,79.111,4.05240666]
[1770852381914,4.05821987,79.139,79.102,44.24666884]
[1770852382225,12.63615456,79.138,79.102,48.2990755]
[1770852382427,4.05821987,79.137,79.102,48.2990755]
[1770852383324,4.05821987,79.137,79.111,4.05240666]
[1770852383618,4.05821987,79.147,79.111,4.05240666]
[1770852383822,64.7,79.148,79.121,4.05240666]
[1770852384126,64.7,79.148,79.131,4.05240666]
[1770852384329,4.05821987,79.155,79.132,12.63711267]
[1770852385007,4.05821987,79.162,79.133,4.05240666]
[1770852385209,4.05821987,79.185,79.141,4.05240666]
[1770852385422,4.05821987,79.172,79.141,4.05240666]
[1770852386339,4.05821987,79.172,79.132,44.22989435]
[1770852386340,4.05821987,79.169,79.133,12.63695297]
[1770852386649,4.05821987,79.167,79.133,12.63695297]
[1770852386847,4.05821987,79.167,79.134,4.05240666]
[1770852388234,4.05821987,79.167,79.135,12.6366336]
[1770852388421,4.05821987,79.167,79.136,3.87752391]
[1770852390229,4.05821987,79.167,79.137,12.63631423]
[1770852390417,4.05821987,79.167,79.138,3.87752391]
[1770852392119,4.05821987,79.167,79.139,12.63599489]
[1770852392612,4.05821987,79.167,79.139,16.5135188]
[1770852393533,4.05821987,79.167,79.14,3.87752391]
[1770852394326,4.00845507,79.166,79.141,12.63567556]
[1770852394734,4.00845507,79.164,79.141,12.63567556]
[1770852397655,4.00845507,79.162,79.138,3.87752391]
[1770852397864,62.6,79.163,79.141,3.87752391]
[1770852398560,4.00845507,79.162,79.141,3.87752391]
[1770852399636,4.00845507,79.162,79.142,12.6355159]
[1770852400149,62.6,79.161,79.151,3.87752391]
[1770852400328,4.00845507,79.181,79.151,3.87752391]
[1770852400531,4.00845507,79.189,79.161,3.87752391]
[1770852400835,4.00845507,79.209,79.181,3.87752391]
[1770852401734,4.00845507,79.209,79.183,3.87752391]
[1770852401931,4.00845507,79.208,79.178,12.62966567]
[1770852403756,4.00845507,79.208,79.174,3.87752391]
[1770852403934,4.00845507,79.206,79.174,3.87752391]
[1770852404537,6.55129246,79.212,79.181,3.87752391]
[1770852405049,4.00845507,79.211,79.181,3.87752391]
[1770852405751,4.00845507,79.209,79.182,16.50665679]
[1770852405955,4.00845507,79.209,79.183,3.87752391]
[1770852407062,6.55129246,79.212,79.183,3.87752391]
[1770852407360,6.55129246,79.212,79.19,4.90538327]
[1770852407652,6.55129246,79.212,79.191,12.62769759]
[1770852409571,4.00845507,79.23,79.201,3.87752391]
[1770852409867,4.00845507,79.252,79.222,3.87752391]
[1770852410168,4.00845507,79.252,79.23,4.90538327]
[1770852411049,6.59492386,79.266,79.231,4.33130938]
[1770852411050,4.38740574,79.262,79.231,4.33130938]
[1770852411370,4.90538327,79.25,79.215,4.33130938]
[1770852411566,4.38740574,79.249,79.221,4.33130938]
[1770852412551,4.38740574,79.249,79.216,44.18299333]
[1770852412875,4.38740574,79.247,79.216,44.18299333]
[1770852413473,4.38740574,79.247,79.216,12.62371238]
[1770852413675,4.38740574,79.245,79.216,12.62371238]
[1770852414068,5.10538327,79.26,79.221,4.33130938]
[1770852414268,4.38740574,79.259,79.221,4.33130938]
[1770852418178,4.38740574,79.257,79.222,48.51095644]
[1770852418478,4.38740574,79.257,79.223,4.33130938]
[1770852420076,4.38740574,79.257,79.225,4.33130938]
[1770852421572,4.38740574,79.255,79.225,4.33130938]
[1770852421958,4.38740574,79.249,79.22,12.62295194]
[1770852422159,4.38740574,79.259,79.221,4.33130938]
[1770852422374,4.38740574,79.259,79.231,4.33130938]
[1770852423374,4.38740574,79.259,79.221,4.33130938]
[1770852424078,4.38740574,79.259,79.223,4.33130938]
[1770852425477,4.38740574,79.257,79.223,4.33130938]
[1770852425673,4.38740574,79.239,79.203,4.33130938]
[1770852425878,4.38740574,79.239,79.206,12.62530616]
[1770852426064,4.38740574,79.237,79.197,53.52]
[1770852426269,4.38740574,79.229,79.195,53.52]
[1770852427282,4.38740574,79.227,79.194,12.62721923]
[1770852428381,4.38740574,79.227,79.191,53.52]
[1770852428382,4.38740574,79.219,79.191,12.62762194]
[1770852428562,4.38740574,79.209,79.185,12.62863345]
[1770852428762,4.38740574,79.209,79.186,4.33130938]
[1770852429279,4.38740574,79.209,79.181,12.62929238]
[1770852431459,4.38740574,79.207,79.175,12.63021007]
[1770852431664,4.38740574,79.207,79.176,4.33130938]
[1770852432565,4.38740574,79.207,79.175,44.20583368]
[1770852432772,4.38740574,79.199,79.163,35.91149654]
[1770852432975,4.38740574,79.179,79.144,31.58783652]
[1770852433166,4.9059449,79.17,79.144,31.58783652]
[1770852433488,4.38740574,79.169,79.145,4.33130938]
[1770852434490,4.38740574,79.169,79.144,31.58783652]
[1770852439595,4.38740574,79.169,79.143,12.63535625]
[1770852439894,62.6,79.186,79.161,4.33130938]
[1770852440187,4.38740574,79.196,79.17,9.23725428]
[1770852440694,4.38740574,79.196,79.171,12.63088757]
[1770852441990,4.38740574,79.196,79.164,4.39503976]
[1770852441991,4.18592997,79.195,79.165,12.63184488]
[1770852442674,4.18592997,79.189,79.165,12.63184488]
[1770852444295,4.18592997,79.189,79.158,12.63296192]
[1770852444598,4.18592997,79.187,79.158,12.63296192]
[1770852445185,4.18592997,79.187,79.158,17.02800168]
[1770852445374,4.18592997,79.187,79.159,4.39503976]
[1770852445695,4.18592997,79.187,79.16,4.9059449]
[1770852447792,4.18592997,79.187,79.161,48.70156837]
[1770852447994,62.6,79.188,79.171,4.4878773]
[1770852448194,4.36980864,79.206,79.18,4.9059449]
[1770852448398,4.36980864,79.206,79.181,4.4878773]
[1770852449481,4.36980864,79.206,79.182,12.62913288]
[1770852449684,4.36980864,79.206,79.183,4.4878773]
[1770852450085,4.36980864,79.206,79.182,12.62913288]
[1770852451587,4.36980864,79.206,79.178,12.62977089]
[1770852452495,4.36980864,79.204,79.178,12.62977089]
[1770852453297,62.6,79.203,79.178,12.62977089]
[1770852453502,4.36980864,79.202,79.178,12.62977089]
[1770852455897,4.36980864,79.202,79.178,44.20419812]
[1770852456296,4.36980864,79.202,79.178,12.62977089]
[1770852457498,4.36980864,79.2,79.175,12.63024944]
[1770852458009,10.96698722,79.221,79.191,4.4878773]
[1770852458191,4.36980864,79.221,79.2,4.9059449]
[1770852458583,4.36980864,79.221,79.21,4.9059449]
[1770852458793,4.36980864,79.235,79.21,4.9059449]
[1770852459316,62.6,79.262,79.221,4.4878773]
[1770852459317,4.36980864,79.242,79.221,4.4878773]
[1770852459492,4.36980864,79.242,79.23,4.9059449]
[1770852459898,4.36980864,79.259,79.231,12.62132246]
[1770852460195,4.36980864,79.258,79.24,4.9059449]
[1770852460390,4.36980864,79.258,79.231,12.62132246]
[1770852460898,4.36980864,79.258,79.24,4.9059449]
[1770852461296,4.36980864,79.258,79.231,12.62132246]
[1770852461497,4.36980864,79.258,79.232,4.4878773]
[1770852461695,16.98699071,79.257,79.233,17.10888117]
[1770852461898,4.36980864,79.256,79.233,4.4878773]
[1770852462099,4.36980864,79.256,79.23,4.9059449]
[1770852463009,4.36980864,79.256,79.231,12.62132246]
[1770852463311,4.36980864,79.256,79.24,4.9059449]
[1770852463512,62.6,79.262,79.25,4.9059449]
[1770852463513,66.96980864,79.262,79.25,4.9059449]
[1770852463701,4.36980864,79.262,79.25,4.9059449]
[1770852463899,4.36980864,79.268,79.251,12.61813731]
[1770852465692,4.36980864,79.268,79.25,4.9059449]
[1770852466525,4.36980864,79.266,79.24,4.9059449]
[1770852467012,4.36980864,79.266,79.241,12.61972968]
[1770852467316,4.36980864,79.266,79.24,4.9059449]
[1770852467494,12.61559034,79.267,79.22,4.9059449]
[1770852467495,4.36980864,79.259,79.22,4.9059449]
[1770852467695,4.36980864,79.257,79.22,4.9059449]
[1770852468515,4.36980864,79.255,79.221,12.62291564]
[1770852470301,4.36980864,79.255,79.221,17.11079294]
[1770852471321,4.36980864,79.255,79.23,4.9059449]
[1770852472624,4.2606078,79.253,79.23,4.9059449]
[1770852472808,4.2606078,79.251,79.22,4.9059449]
[1770852473127,4.2606078,79.249,79.221,12.62291564]
[1770852473320,4.2606078,79.249,79.221,16.90636477]
[1770852474106,4.2606078,79.252,79.231,4.28344913]
[1770852474307,4.2606078,79.252,79.225,4.28344913]
[1770852474511,4.2606078,79.252,79.221,12.62291564]
[1770852474512,4.2606078,79.252,79.222,4.28344913]
[1770852475128,4.2606078,79.252,79.221,12.62291564]
[1770852475129,4.2606078,79.249,79.219,12.62323432]
[1770852475929,4.2606078,79.249,79.22,4.9059449]
[1770852476102,4.2606078,79.247,79.23,4.9059449]
[1770852476303,62.6,79.248,79.231,4.28344913]
[1770852476729,66.16,79.253,79.231,4.28344913]
[1770852476931,4.2606078,79.252,79.231,4.28344913]
[1770852477229,4.2606078,79.252,79.232,12.62116316]
[1770852477524,4.2606078,79.252,79.227,12.62191306]
[1770852477930,4.2606078,79.252,79.23,4.9059449]
[1770852478713,4.2606078,79.251,79.227,12.62191306]
[1770852479733,4.2606078,79.25,79.221,12.62291564]
[1770852480831,4.2606078,79.25,79.221,16.90636477]
[1770852481132,4.2606078,79.25,79.222,4.28344913]
[1770852481432,4.2606078,79.25,79.23,4.9059449]
[1770852482216,4.2606078,79.25,79.231,12.62132246]
[1770852483614,75.21845575,79.249,79.224,4.28344913]
[1770852483810,4.2606078,79.248,79.221,4.28344913]
[1770852484216,4.2606078,79.246,79.221,4.28344913]
[1770852487027,4.2606078,79.244,79.216,12.62355724]
[1770852488415,62.6,79.244,79.216,12.62355724]
[1770852488615,4.2606078,79.243,79.216,12.62355724]
[1770852488828,4.2606078,79.241,79.216,12.62355724]
[1770852490823,4.2606078,79.241,79.217,4.28344913]
[1770852491727,4.2606078,79.241,79.22,4.90200656]
[1770852491911,4.2606078,79.241,79.222,4.28344913]
[1770852492234,62.6,79.242,79.23,4.90200656]
[1770852492619,62.6,79.242,79.23,9.18545569]
[1770852493928,62.6,79.242,79.23,4.90200656]
[1770852494235,4.2606078,79.241,79.221,12.62291564]
[1770852494439,62.6,79.24,79.221,16.90636477]
[1770852494618,62.6,79.24,79.222,4.28344913]
[1770852495337,4.2606078,79.239,79.221,12.62291564]
[1770852496435,4.2606078,79.233,79.196,4.28344913]
[1770852496632,4.2606078,79.233,79.19,4.90200656]
[1770852496633,4.2606078,79.229,79.192,53.98]
[1770852497537,4.2606078,79.225,79.193,16.91082781]
[1770852498036,4.2606078,79.225,79.193,12.62737868]
[1770852499342,12.622119,79.226,79.188,4.28344913]
[1770852499343,4.2606078,79.223,79.188,12.62801727]
[1770852499524,4.2606078,79.199,79.144,4.28344913]
[1770852499719,4.2606078,79.199,79.143,12.63535625]
[1770852499720,4.2606078,79.199,79.162,4.28344913]
[1770852499919,4.2606078,79.199,79.17,4.90200656]
[1770852500349,4.2606078,79.214,79.191,4.28344913]
[1770852500844,4.2606078,79.214,79.181,4.13414876]
[1770852501529,4.20910081,79.212,79.183,4.13414876]
[1770852503845,4.20910081,79.209,79.184,12.6288139]
[1770852504324,4.20910081,79.214,79.191,4.13414876]
[1770852504728,4.20910081,79.214,79.184,48.33499741]
[1770852504932,4.20910081,79.209,79.184,12.6288139]
[1770852506136,4.20910081,79.207,79.184,12.6288139]
[1770852506331,4.20910081,79.207,79.185,4.13414876]
[1770852509538,4.20910081,79.207,79.186,12.62849493]
[1770852509751,62.6,79.208,79.187,4.33963961]
[1770852509930,62.6,79.208,79.191,4.33963961]
[1770852511150,62.6,79.208,79.19,4.90200656]
[1770852511752,62.6,79.208,79.191,12.62769759]
[1770852511958,62.6,79.212,79.191,12.62769759]
[1770852514453,4.43519306,79.211,79.191,12.62769759]
[1770852517749,4.43519306,79.209,79.191,12.62769759]
[1770852520160,4.43519306,79.209,79.187,12.62822372]
[1770852520363,4.43519306,79.209,79.19,4.90200656]
[1770852522060,4.43519306,79.209,79.191,12.62769759]
[1770852523061,4.43519306,79.209,79.192,4.33963961]
[1770852523663,62.6,79.208,79.191,12.62769759]
[1770852524254,4.43519306,79.224,79.201,4.33963961]
[1770852524459,4.43519306,79.224,79.21,4.90200656]
[1770852524658,57.69799344,79.223,79.21,4.90200656]
[1770852524999,62.1331865,79.223,79.21,4.90200656]
[1770852526243,4.43519306,79.222,79.21,4.90200656]
[1770852527658,62.1331865,79.235,79.211,1.83986002]
[1770852527844,4.43519306,79.233,79.22,4.90200656]
[1770852528246,4.43519306,79.233,79.211,12.62450922]
[1770852531359,4.22594567,79.232,79.21,4.90200656]
[1770852531673,4.22594567,79.232,79.21,17.52662415]
[1770852532468,4.22594567,79.231,79.21,17.52662415]
[1770852533973,4.22594567,79.231,79.211,1.83986002]
[1770852534468,4.22594567,79.231,79.22,4.90200656]
[1770852534675,4.22594567,79.231,79.211,1.83986002]
[1770852534850,4.22594567,79.229,79.21,4.90200656]
[1770852535370,4.22594567,79.229,79.2,33.40549856]
[1770852535371,4.22594567,79.229,79.2,17.52825013]